fUST/lending_fUST_20240517
["ID","MTS","AMOUNT","RATE_DAILY","PERIOD"]
[327185782,1715886445634,-708.59,0.00016438,2]
[327185783,1715886445655,-2225.18,0.00016438,2]
[327185784,1715886445679,-1067.19,0.00016438,2]
[327185785,1715886445702,-500.0,0.00016438,2]
[327185786,1715886445724,-384.96968369,0.00016438,2]
[327185787,1715886445745,-500.0,0.00016438,2]
[327185788,1715886445766,-500.0,0.00016438,2]
[327185789,1715886445788,-622.87,0.00016438,2]
[327185790,1715886445808,-500.0,0.00016438,2]
[327185791,1715886445830,-12895.62,0.00016438,2]
[327185792,1715886445851,-1037.53,0.00016438,2]
[327185793,1715886445872,-500.0,0.00016438,2]
[327185794,1715886445893,-312.72951874,0.00016438,2]
[327185795,1715886446048,-187.27048126,0.00016438,2]
[327185796,1715886446071,-500.0,0.00016438,2]
[327185797,1715886446092,-4867.4,0.00016438,2]
[327185798,1715886446113,-383.51822389,0.00016438,2]
[327185799,1715886446133,-500.0,0.00016438,2]
[327185800,1715886446154,-500.0,0.00016438,2]
[327185801,1715886446174,-833.59,0.00016438,2]
[327185802,1715886446196,-895.26,0.00016438,2]
[327185803,1715886446216,-500.0,0.00016438,2]
[327185804,1715886446237,-582.52,0.00016438,2]
[327185805,1715886446257,-6379.92,0.00016438,2]
[327185806,1715886446278,-727.02,0.00016438,2]
[327185807,1715886446297,-500.0,0.00016438,2]
[327185808,1715886446316,-500.0,0.00016438,2]
[327185809,1715886446336,-500.0,0.00016438,2]
[327185810,1715886446355,-2242.41,0.00016438,2]
[327185811,1715886446376,-500.0,0.00016438,2]
[327185812,1715886446395,-263.2975575,0.00016438,2]
[327185813,1715886446414,-292.53005039,0.00016438,2]
[327185814,1715886446438,-500.0,0.00016438,2]
[327185815,1715886446459,-1077.39,0.00016438,2]
[327185816,1715886446480,-520.32,0.00016438,2]
[327185817,1715886446502,-500.0,0.00016438,2]
[327185818,1715886446521,-500.0,0.00016438,2]
[327185819,1715886446542,-2078.13,0.00016438,2]
[327185820,1715886446563,-928.28,0.00016438,2]
[327185821,1715886446584,-500.0,0.00016438,2]
[327185822,1715886446604,-1709.8,0.00016438,2]
[327185823,1715886446623,-500.0,0.00016438,2]
[327185824,1715886446644,-500.0,0.00016438,2]
[327185825,1715886446664,-500.0,0.00016438,2]
[327185826,1715886446847,-500.0,0.00016438,2]
[327185827,1715886446869,-500.0,0.00016438,2]
[327185828,1715886446890,-1429.61,0.00016438,2]
[327185829,1715886446910,-501.75,0.00016438,2]
[327185830,1715886446931,-500.0,0.00016438,2]
[327185831,1715886446954,-500.0,0.00016438,2]
[327185832,1715886446975,-3558.84,0.00016438,2]
[327185833,1715886446994,-500.0,0.00016438,2]
[327185834,1715886447014,-672.91,0.00016438,2]
[327185835,1715886447037,-1209.33476095,0.00016438,2]
[327185836,1715886454121,-248.89656506,0.00016438,3]
[327185858,1715886639046,-154.79876161,0.00016437,2]
[327185860,1715886639056,-245.06687769,0.00016437,2]
[327185862,1715886639066,-346.02961523,0.00016438,3]
[327185864,1715886639075,-500.0,0.00016438,2]
[327185866,1715886639085,-500.0,0.00016438,2]
[327185869,1715886639096,-500.0,0.00016438,2]
[327185870,1715886639105,-500.0,0.00016438,2]
[327185872,1715886639115,-500.0,0.00016438,2]
[327185874,1715886639124,-621.43,0.00016438,2]
[327185876,1715886639134,-500.0,0.00016438,2]
[327185878,1715886639143,-500.0,0.00016438,2]
[327185880,1715886639152,-3369.59,0.00016438,2]
[327185882,1715886639161,-799.07,0.00016438,2]
[327185884,1715886639171,-839.83,0.00016438,2]
[327185886,1715886639181,-124.18474547,0.00016438,2]
[327186174,1715886642286,-375.81525453,0.00016438,2]
[327186176,1715886642296,-1594.31,0.00016438,2]
[327186178,1715886642305,-1123.47,0.00016438,2]
[327186180,1715886642315,-500.0,0.00016438,2]
[327186182,1715886642325,-500.0,0.00016438,2]
[327186184,1715886642334,-500.0,0.00016438,2]
[327186186,1715886642346,-500.0,0.00016438,2]
[327186188,1715886642355,-500.0,0.00016438,2]
[327186191,1715886642365,-759.16,0.00016438,2]
[327186192,1715886642374,-500.0,0.00016438,2]
[327186194,1715886642383,-600.0,0.00016438,2]
[327186196,1715886642392,-500.0,0.00016438,2]
[327186198,1715886642401,-1822.66,0.00016438,2]
[327186200,1715886642411,-1159.75,0.00016438,2]
[327186202,1715886642420,-514.69,0.00016438,2]
[327186204,1715886642429,-500.0,0.00016438,2]
[327186206,1715886642439,-792.97,0.00016438,2]
[327186208,1715886642448,-648.29,0.00016438,2]
[327186210,1715886642458,-500.0,0.00016438,2]
[327186212,1715886642467,-702.80938342,0.00016438,2]
[327186369,1715886644114,-33.43061658,0.00016438,2]
[327186371,1715886644123,-500.0,0.00016438,2]
[327186373,1715886644132,-695.16,0.00016438,2]
[327186375,1715886644142,-500.0,0.00016438,2]
[327186377,1715886644151,-500.0,0.00016438,2]
[327186379,1715886644160,-502.81,0.00016438,2]
[327186381,1715886644169,-500.0,0.00016438,2]
[327186383,1715886644178,-1797.66,0.00016438,2]
[327186385,1715886644187,-500.0,0.00016438,2]
[327186387,1715886644196,-2900.34,0.00016438,2]
[327186389,1715886644205,-500.0,0.00016438,2]
[327186391,1715886644215,-500.0,0.00016438,2]
[327186393,1715886644223,-731.3,0.00016438,2]
[327186395,1715886644233,-1333.3,0.00016438,2]
[327186397,1715886644242,-235.4975923,0.00016438,2]
[327186399,1715886644251,-500.0,0.00016438,2]
[327186401,1715886644261,-500.0,0.00016438,2]
[327186403,1715886644270,-500.0,0.00016438,2]
[327186405,1715886644279,-2665.68491242,0.00016438,2]
[327186407,1715886644291,-631.49508758,0.00016438,2]
[327186409,1715886644300,-500.0,0.00016438,2]
[327186411,1715886644310,-500.0,0.00016438,2]
[327186413,1715886644319,-774.23,0.00016438,2]
[327186415,1715886644328,-500.0,0.00016438,2]
[327186417,1715886644337,-2086.45,0.00016438,2]
[327186419,1715886644348,-22273.23013528,0.00016438,2]
[327186851,1715886648642,-1402.75151276,0.00016437,2]
[327186853,1715886648652,-27892.50986472,0.00016438,2]
[327186855,1715886648661,-500.0,0.00016438,2]
[327186857,1715886648671,-8701.8111521,0.00016438,2]
[327186860,1715886648684,-1808.47419384,0.00016438,2]
[327192471,1715887154720,1094.64720294,9.999e-05,2]
[327192472,1715887367383,154.79876161,0.00015,2]
[327192475,1715887637148,-1553.73621952,0.00016337,2]
[327192476,1715887637169,-309.55113619,0.00016436,2]
[327192477,1715887637188,-461.00029486,0.00016436,2]
[327192478,1715887637208,-309.55115161,0.00016436,2]
[327192479,1715887637228,-1092.88045503,0.00016436,2]
[327192480,1715887637247,-492.60126015,0.00016436,2]
[327192481,1715887637267,-384.1575295,0.00016436,2]
[327192482,1715887637287,-188.89226747,0.00016436,2]
[327192483,1715887637306,-331.45632176,0.00016437,2]
[327192484,1715887637326,-25705.37498341,0.00016437,2]
[327192485,1715887642107,-516.86819294,0.00016437,2]
[327192486,1715887647102,-454.46815222,0.00016437,2]
[327192490,1715887834572,-400.61665992,0.00016174,2]
[327192491,1715887834584,-16.25955737,0.00016174,2]
[327192492,1715887834594,-377.00844496,0.00016338,2]
[327192493,1715887834604,-1478.20409382,0.00016436,2]
[327192494,1715887834617,-2189.87307701,0.00016436,2]
[327192532,1715887838313,-3227.69889986,0.00016436,2]
[327192534,1715887838325,-6994.917999,0.00016436,2]
[327192536,1715887838334,-154.79876161,0.00016436,2]
[327192538,1715887838343,-2018.08290113,0.00016437,2]
[327192540,1715887838355,-657.9215174,0.00016437,2]
[327192542,1715887838365,-173.01480762,0.00016438,3]
[327192544,1715887838374,-916.07929629,0.00016438,3]
[327192546,1715887838385,-223.06351221,0.00016438,2]
[327192548,1715887838395,-96.35086648,0.00016438,2]
[327192550,1715887838407,-403.64913352,0.00016438,2]
[327192552,1715887838416,-503.54,0.00016438,2]
[327192554,1715887838425,-151.0,0.00016438,2]
[327192556,1715887838434,-151.0,0.00016438,2]
[327192558,1715887838443,-931.95,0.00016438,2]
[327192560,1715887838452,-500.0,0.00016438,2]
[327192562,1715887838461,-500.0,0.00016438,2]
[327192564,1715887838471,-500.0,0.00016438,2]
[327192566,1715887838480,-500.0,0.00016438,2]
[327192568,1715887838490,-500.0,0.00016438,2]
[327192570,1715887838500,-500.0,0.00016438,2]
[327192572,1715887838510,-500.0,0.00016438,2]
[327192574,1715887838519,-279.9454913,0.00016438,2]
[327192597,1715887838737,-220.0545087,0.00016438,2]
[327192599,1715887838747,-500.0,0.00016438,2]
[327192601,1715887838756,-500.0,0.00016438,2]
[327192603,1715887838766,-500.0,0.00016438,2]
[327192605,1715887838776,-500.0,0.00016438,2]
[327192606,1715887838785,-500.0,0.00016438,2]
[327192607,1715887838795,-368.55565899,0.00016438,2]
[327192805,1715887843743,-358.97434101,0.00016438,2]
[327192807,1715887843753,-500.0,0.00016438,2]
[327192809,1715887843763,-500.0,0.00016438,2]
[327192811,1715887843773,-500.0,0.00016438,2]
[327192813,1715887843783,-500.0,0.00016438,2]
[327192815,1715887843794,-500.0,0.00016438,2]
[327192817,1715887843803,-621.28,0.00016438,2]
[327192819,1715887843812,-500.0,0.00016438,2]
[327192821,1715887843822,-500.0,0.00016438,2]
[327192823,1715887843831,-500.0,0.00016438,2]
[327192825,1715887843840,-500.0,0.00016438,2]
[327192827,1715887843850,-1196.72,0.00016438,2]
[327192829,1715887843859,-500.0,0.00016438,2]
[327192831,1715887843869,-1022.72,0.00016438,2]
[327192832,1715887843882,-500.0,0.00016438,2]
[327192834,1715887843892,-857.95,0.00016438,2]
[327192836,1715887843902,-500.0,0.00016438,2]
[327192838,1715887843911,-500.0,0.00016438,2]
[327192840,1715887843925,-500.0,0.00016438,2]
[327192842,1715887843936,-696.72,0.00016438,2]
[327192844,1715887843945,-500.0,0.00016438,2]
[327192846,1715887843954,-500.0,0.00016438,2]
[327192848,1715887843966,-500.0,0.00016438,2]
[327192850,1715887843976,-500.0,0.00016438,2]
[327192852,1715887843985,-500.0,0.00016438,2]
[327192854,1715887843995,-500.0,0.00016438,2]
[327192856,1715887844004,-151.0,0.00016438,2]
[327192857,1715887844014,-151.0,0.00016438,2]
[327192859,1715887844023,-151.0,0.00016438,2]
[327192861,1715887844033,-500.0,0.00016438,2]
[327192862,1715887844043,-500.0,0.00016438,2]
[327192863,1715887844052,-500.0,0.00016438,2]
[327192864,1715887844061,-500.0,0.00016438,2]
[327192865,1715887844070,-500.0,0.00016438,2]
[327192866,1715887844080,-500.0,0.00016438,2]
[327192867,1715887844089,-596.92,0.00016438,2]
[327192868,1715887844098,-500.0,0.00016438,2]
[327192869,1715887844107,-644.87,0.00016438,2]
[327192870,1715887844116,-500.0,0.00016438,2]
[327192871,1715887844124,-500.0,0.00016438,2]
[327192872,1715887844135,-500.0,0.00016438,2]
[327192873,1715887844144,-500.0,0.00016438,2]
[327192874,1715887844154,-500.0,0.00016438,2]
[327192875,1715887844163,-798.86,0.00016438,2]
[327192876,1715887844172,-595.54,0.00016438,2]
[327192877,1715887844181,-804.84,0.00016438,2]
[327192878,1715887844190,-500.0,0.00016438,2]
[327192879,1715887844199,-1638.56,0.00016438,2]
[327192880,1715887844208,-500.0,0.00016438,2]
[327192881,1715887844217,-500.0,0.00016438,2]
[327192882,1715887844226,-500.0,0.00016438,2]
[327192883,1715887844235,-520.82,0.00016438,2]
[327192884,1715887844244,-500.0,0.00016438,2]
[327192885,1715887844253,-500.0,0.00016438,2]
[327192886,1715887844262,-765.77,0.00016438,2]
[327192887,1715887844270,-1527.88,0.00016438,2]
[327192888,1715887844279,-555.93946193,0.00016438,2]
[327192889,1715887844289,-1746.72,0.00016438,2]
[327192890,1715887844298,-3229.19,0.00016438,2]
[327192891,1715887844308,-500.0,0.00016438,2]
[327192892,1715887844317,-500.0,0.00016438,2]
[327192893,1715887844326,-759.93,0.00016438,2]
[327192894,1715887844336,-500.0,0.00016438,2]
[327192895,1715887844345,-500.0,0.00016438,2]
[327192896,1715887844355,-500.0,0.00016438,2]
[327192897,1715887844364,-1076.65,0.00016438,2]
[327192898,1715887844374,-500.0,0.00016438,2]
[327192899,1715887844383,-83.52894962,0.00016438,2]
[327192906,1715887844454,-302.8671087,0.00016438,2]
[327192908,1715887844466,-113.60394168,0.00016438,2]
[327192910,1715887844476,-298.1972658,0.00016438,2]
[327192912,1715887844488,-407.3627342,0.00016438,2]
[327192914,1715887844497,-1111.43,0.00016438,2]
[327192916,1715887844508,-500.0,0.00016438,2]
[327192918,1715887844518,-500.0,0.00016438,2]
[327192920,1715887844527,-500.0,0.00016438,2]
[327192922,1715887844537,-58.38495589,0.00016438,2]
[327192925,1715887844549,-441.61504411,0.00016438,2]
[327192927,1715887844559,-500.0,0.00016438,2]
[327192929,1715887844568,-2779.5,0.00016438,2]
[327192931,1715887844578,-500.0,0.00016438,2]
[327192933,1715887844587,-1277.74,0.00016438,2]
[327192935,1715887844596,-500.0,0.00016438,2]
[327192937,1715887844605,-500.0,0.00016438,2]
[327192939,1715887844616,-500.0,0.00016438,2]
[327192941,1715887844625,-500.0,0.00016438,2]
[327192943,1715887844636,-339.73449885,0.00016438,2]
[327192945,1715887844645,-500.0,0.00016438,2]
[327192947,1715887844654,-500.0,0.00016438,2]
[327192949,1715887844664,-500.0,0.00016438,2]
[327192951,1715887844673,-500.0,0.00016438,2]
[327192953,1715887844683,-500.0,0.00016438,2]
[327192955,1715887844692,-500.0,0.00016438,2]
[327192957,1715887844701,-1508.75,0.00016438,2]
[327192959,1715887844710,-500.0,0.00016438,2]
[327192961,1715887844719,-500.0,0.00016438,2]
[327192963,1715887844729,-369.44496116,0.00016438,2]
[327192965,1715887844738,-500.0,0.00016438,2]
[327192967,1715887844747,-500.0,0.00016438,2]
[327192969,1715887844757,-500.0,0.00016438,2]
[327192971,1715887844766,-500.0,0.00016438,2]
[327192973,1715887844775,-500.0,0.00016438,2]
[327192975,1715887844785,-718.54,0.00016438,2]
[327192977,1715887844794,-546.86,0.00016438,2]
[327192979,1715887844803,-500.0,0.00016438,2]
[327192981,1715887844812,-500.0,0.00016438,2]
[327192983,1715887844821,-500.0,0.00016438,2]
[327192985,1715887844831,-515.32534349,0.00016438,2]
[327192987,1715887844840,-500.0,0.00016438,2]
[327192989,1715887844849,-500.0,0.00016438,2]
[327192991,1715887844858,-151.0,0.00016438,2]
[327192993,1715887844867,-151.0,0.00016438,2]
[327192995,1715887844881,-151.0,0.00016438,2]
[327192997,1715887844894,-500.0,0.00016438,2]
[327192999,1715887844904,-500.0,0.00016438,2]
[327193001,1715887844914,-500.0,0.00016438,2]
[327193003,1715887844924,-500.0,0.00016438,2]
[327193005,1715887844934,-500.0,0.00016438,2]
[327193007,1715887844943,-500.0,0.00016438,2]
[327193009,1715887844954,-500.0,0.00016438,2]
[327193011,1715887844964,-2196.19,0.00016438,2]
[327193013,1715887844973,-2123.51,0.00016438,2]
[327193015,1715887844982,-500.0,0.00016438,2]
[327193016,1715887844991,-4134.73,0.00016438,2]
[327193018,1715887845001,-500.0,0.00016438,2]
[327193021,1715887845011,-500.0,0.00016438,2]
[327193023,1715887845020,-500.0,0.00016438,2]
[327193024,1715887845029,-1513.42,0.00016438,2]
[327193026,1715887845039,-889.6,0.00016438,2]
[327193029,1715887845050,-500.0,0.00016438,2]
[327193030,1715887845059,-500.0,0.00016438,2]
[327193032,1715887845069,-3113.45,0.00016438,2]
[327193034,1715887845078,-500.0,0.00016438,2]
[327193036,1715887845087,-500.0,0.00016438,2]
[327193038,1715887845096,-500.0,0.00016438,2]
[327193040,1715887845106,-528.81,0.00016438,2]
[327193042,1715887845116,-500.0,0.00016438,2]
[327193044,1715887845126,-656.59,0.00016438,2]
[327193046,1715887845137,-500.0,0.00016438,2]
[327193048,1715887845146,-500.0,0.00016438,2]
[327193050,1715887845156,-2152.72,0.00016438,2]
[327193052,1715887845165,-416.29840328,0.00016438,2]
[327193054,1715887845175,-53.31415339,0.00016438,2]
[327193197,1715887846425,-446.68584661,0.00016438,2]
[327193199,1715887846435,-500.0,0.00016438,2]
[327193201,1715887846445,-2239.01,0.00016438,2]
[327193203,1715887846454,-1726.68,0.00016438,2]
[327193205,1715887846464,-554.43,0.00016438,2]
[327193207,1715887846473,-872.14,0.00016438,2]
[327193209,1715887846483,-500.0,0.00016438,2]
[327193211,1715887846492,-666.19,0.00016438,2]
[327193213,1715887846501,-654.39,0.00016438,2]
[327193215,1715887846510,-500.0,0.00016438,2]
[327193217,1715887846519,-500.0,0.00016438,2]
[327193219,1715887846529,-151.0,0.00016438,2]
[327193221,1715887846538,-151.0,0.00016438,2]
[327193223,1715887846547,-151.0,0.00016438,2]
[327193225,1715887846557,-370.92113487,0.00016438,2]
[327193226,1715887846566,-1722.76,0.00016438,2]
[327193228,1715887846575,-500.0,0.00016438,2]
[327193230,1715887846584,-500.0,0.00016438,2]
[327193232,1715887846594,-500.0,0.00016438,2]
[327193234,1715887846603,-700.83,0.00016438,2]
[327193236,1715887846612,-151.0,0.00016438,2]
[327193238,1715887846622,-500.0,0.00016438,4]
[327193240,1715887846632,-500.0,0.00016438,2]
[327193242,1715887846643,-500.0,0.00016438,2]
[327193244,1715887846652,-500.0,0.00016438,2]
[327193246,1715887846662,-151.0,0.00016438,2]
[327193248,1715887846671,-151.0,0.00016438,2]
[327193250,1715887846680,-151.0,0.00016438,2]
[327193252,1715887846690,-7309.43,0.00016438,2]
[327193254,1715887846699,-3159.8,0.00016438,2]
[327193256,1715887846709,-500.0,0.00016438,2]
[327193258,1715887846719,-1032.5,0.00016438,2]
[327193260,1715887846728,-500.0,0.00016438,2]
[327193262,1715887846738,-500.0,0.00016438,2]
[327193264,1715887846747,-1988.93,0.00016438,2]
[327193266,1715887846756,-500.0,0.00016438,2]
[327193268,1715887846765,-500.0,0.00016438,2]
[327193270,1715887846774,-500.0,0.00016438,2]
[327193272,1715887846783,-500.0,0.00016438,2]
[327193274,1715887846793,-48075.5,0.00016438,2]
[327193276,1715887846802,-675.02,0.00016438,2]
[327193278,1715887846812,-500.0,0.00016438,2]
[327193280,1715887846822,-616.91,0.00016438,2]
[327193282,1715887846831,-5566.67,0.00016438,2]
[327193284,1715887846841,-500.0,0.00016438,2]
[327193286,1715887846851,-893.9,0.00016438,2]
[327193288,1715887846860,-500.0,0.00016438,2]
[327193290,1715887846870,-500.0,0.00016438,2]
[327193292,1715887846884,-151.0,0.00016438,2]
[327193294,1715887846894,-151.0,0.00016438,2]
[327193296,1715887846903,-151.0,0.00016438,2]
[327193298,1715887846912,-525.04,0.00016438,2]
[327193300,1715887846923,-151.0,0.00016438,2]
[327193302,1715887846932,-151.0,0.00016438,2]
[327193304,1715887846942,-151.0,0.00016438,2]
[327193306,1715887846952,-500.0,0.00016438,2]
[327193308,1715887846964,-1339.32,0.00016438,2]
[327193310,1715887846974,-1796.29,0.00016438,2]
[327193312,1715887846983,-500.0,0.00016438,2]
[327193314,1715887846993,-12358.3,0.00016438,2]
[327193316,1715887847002,-500.0,0.00016438,2]
[327193318,1715887847012,-500.0,0.00016438,2]
[327193320,1715887847021,-1991.54,0.00016438,2]
[327193322,1715887847031,-826.78,0.00016438,2]
[327193324,1715887847040,-500.0,0.00016438,2]
[327193326,1715887847050,-741.97,0.00016438,2]
[327193328,1715887847060,-4664.59,0.00016438,2]
[327193330,1715887847070,-1370.04,0.00016438,2]
[327193332,1715887847079,-2132.47,0.00016438,2]
[327193334,1715887847089,-500.0,0.00016438,2]
[327193336,1715887847099,-12239.14,0.00016438,2]
[327193338,1715887847109,-500.0,0.00016438,2]
[327193340,1715887847119,-6114.09,0.00016438,2]
[327193342,1715887847128,-3410.56,0.00016438,2]
[327193344,1715887847137,-757.84,0.00016438,2]
[327193346,1715887847147,-2148.97,0.00016438,2]
[327193348,1715887847156,-1938.57773313,0.00016438,2]
[327193350,1715887847170,-363.25944442,0.00016438,2]
[327193368,1715887848929,-118.68282245,0.00016438,2]
[327193370,1715887848938,-143.62337513,0.00016438,2]
[327193372,1715887848950,-356.37662487,0.00016438,2]
[327193374,1715887848961,-304.05780179,0.00016438,2]
[327193376,1715887848970,-18.49639185,0.00016438,2]
[327193378,1715887848982,-1098.90829827,0.00016438,2]
[327193383,1715887889495,154.79876161,9.999e-05,2]
[327193388,1715887932588,109.90408044,9.999e-05,2]
[327193389,1715887932609,44.89468117,9.999e-05,2]
[327193390,1715887935861,108.10531883,9.999e-05,2]
[327193391,1715887935888,46.69344278,9.999e-05,2]
[327193532,1715888435630,154.79876161,9.999e-05,2]
[327193533,1715888609951,400.0,0.00019,10]
[327193534,1715888707631,-2399.76310029,0.00016299,2]
[327193535,1715888707654,-1304.97417064,0.000163,2]
[327193536,1715888707678,-8747.82642077,0.00016434,2]
[327193537,1715888707704,-163.10952929,0.00016435,2]
[327193538,1715888707733,-268.16352056,0.00016435,2]
[327193539,1715888707758,-157.42213877,0.00016435,2]
[327193540,1715888707782,-817.58871518,0.00016435,2]
[327193541,1715888707807,-802.91256376,0.00016435,2]
[327193542,1715888707834,-154.94342866,0.00016435,2]
[327193543,1715888707858,-206.91653273,0.00016435,2]
[327193544,1715888707884,-154.98347424,0.00016435,2]
[327193545,1715888707909,-154.79874928,0.00016435,2]
[327193546,1715888707936,-447.49704798,0.00016435,2]
[327193547,1715888707964,-688.08920431,0.00016436,2]
[327193548,1715888707990,-5891.01140354,0.00016437,2]
[327193549,1715888825120,-564.75054767,0.00016238,2]
[327193550,1715888828114,-1555.32426368,0.00016238,2]
[327193551,1715888828137,-329.88238934,0.00016338,2]
[327193552,1715888828158,-2393.37380741,0.00016435,2]
[327193553,1715888828181,-362.90288435,0.00016436,2]
[327193554,1715888828204,-20239.26546952,0.00016436,2]
[327193555,1715888828231,-50080.06073562,0.00016437,2]
[327193556,1715888828258,-173.01480761,0.00016438,3]
[327193557,1715888828278,-7958.03964814,0.00016438,3]
[327193558,1715888828301,-285.22063736,0.00016438,2]
[327193559,1715888828323,-500.0,0.00016438,2]
[327193560,1715888828345,-697.21,0.00016438,2]
[327193561,1715888828366,-500.0,0.00016438,2]
[327193562,1715888828387,-500.0,0.00016438,2]
[327193563,1715888828408,-500.0,0.00016438,2]
[327193564,1715888828429,-500.0,0.00016438,2]
[327193565,1715888828450,-500.0,0.00016438,2]
[327193566,1715888828471,-500.0,0.00016438,2]
[327193567,1715888828494,-500.0,0.00016438,2]
[327193568,1715888828515,-500.0,0.00016438,2]
[327193569,1715888828537,-459.02397777,0.00016438,2]
[327193570,1715888828558,-310.96353083,0.00016438,2]
[327193571,1715888828580,-500.0,0.00016438,2]
[327193572,1715888828616,-500.0,0.00016438,2]
[327193573,1715888828641,-595.39,0.00016438,2]
[327193574,1715888828666,-500.0,0.00016438,2]
[327193575,1715888828692,-500.0,0.00016438,2]
[327193576,1715888828718,-500.0,0.00016438,2]
[327193577,1715888828741,-500.0,0.00016438,2]
[327193578,1715888828765,-500.0,0.00016438,2]
[327193579,1715888828788,-500.0,0.00016438,2]
[327193580,1715888828810,-500.0,0.00016438,2]
[327193581,1715888828832,-500.0,0.00016438,2]
[327193582,1715888828854,-500.0,0.00016438,2]
[327193583,1715888828876,-500.0,0.00016438,2]
[327193584,1715888828897,-500.0,0.00016438,2]
[327193585,1715888828922,-500.0,0.00016438,2]
[327193586,1715888828946,-2256.29,0.00016438,2]
[327193587,1715888828969,-500.0,0.00016438,2]
[327193588,1715888828993,-500.0,0.00016438,2]
[327193589,1715888829015,-500.0,0.00016438,2]
[327193590,1715888829037,-500.0,0.00016438,2]
[327193591,1715888829063,-500.0,0.00016438,2]
[327193592,1715888829084,-500.0,0.00016438,2]
[327193593,1715888829106,-500.0,0.00016438,2]
[327193594,1715888829127,-500.0,0.00016438,2]
[327193595,1715888829148,-500.0,0.00016438,2]
[327193596,1715888829169,-533.41,0.00016438,2]
[327193597,1715888829190,-500.0,0.00016438,2]
[327193598,1715888829214,-500.0,0.00016438,2]
[327193599,1715888829236,-591.2,0.00016438,2]
[327193600,1715888829256,-500.0,0.00016438,2]
[327193601,1715888829277,-500.0,0.00016438,2]
[327193602,1715888829302,-856.66,0.00016438,2]
[327193603,1715888829323,-500.0,0.00016438,2]
[327193604,1715888829344,-500.0,0.00016438,2]
[327193605,1715888829365,-151.0,0.00016438,2]
[327193606,1715888829388,-151.0,0.00016438,2]
[327193607,1715888829408,-500.0,0.00016438,2]
[327193608,1715888829429,-504.01598018,0.00016438,2]
[327193609,1715888829452,-287.61139661,0.00016438,2]
[327193610,1715888829472,-792.33,0.00016438,2]
[327193611,1715888829496,-2043.61,0.00016438,2]
[327193612,1715888829516,-500.0,0.00016438,2]
[327193613,1715888829536,-500.0,0.00016438,2]
[327193614,1715888829559,-2319.66,0.00016438,2]
[327193615,1715888829582,-500.0,0.00016438,2]
[327193616,1715888829603,-500.0,0.00016438,2]
[327193617,1715888829631,-500.0,0.00016438,2]
[327193618,1715888829651,-679.07,0.00016438,2]
[327193619,1715888829671,-500.0,0.00016438,2]
[327193620,1715888829692,-1190.86,0.00016438,2]
[327193621,1715888829712,-500.0,0.00016438,2]
[327193622,1715888829732,-500.0,0.00016438,2]
[327193623,1715888829759,-558.25,0.00016438,2]
[327193624,1715888829779,-863.75,0.00016438,2]
[327193625,1715888829799,-500.0,0.00016438,2]
[327193626,1715888829820,-500.0,0.00016438,2]
[327193627,1715888829841,-500.0,0.00016438,2]
[327193628,1715888829861,-1146.86,0.00016438,2]
[327193629,1715888829882,-488.74673176,0.00016438,2]
[327193630,1715888829903,-500.0,0.00016438,2]